fUST/lending_fUST_20251212
["ID","MTS","AMOUNT","RATE_DAILY","PERIOD"]
[398285555,1765491047997,-596.96,0.0001315,2]
[398285556,1765491048006,-500.0,0.0001315,2]
[398285557,1765491048015,-500.0,0.0001315,2]
[398285558,1765491048025,-500.0,0.0001315,2]
[398285559,1765491048034,-500.0,0.0001315,2]
[398285560,1765491048043,-500.0,0.0001315,2]
[398285561,1765491048053,-1052.1,0.0001315,2]
[398285562,1765491048062,-500.0,0.0001315,2]
[398285563,1765491048072,-500.0,0.0001315,2]
[398285564,1765491048081,-1642.34,0.0001315,2]
[398285565,1765491048090,-500.0,0.0001315,2]
[398285566,1765491048099,-423.49905188,0.0001315,2]
[398285567,1765491048109,-500.0,0.0001315,2]
[398285568,1765491048118,-500.0,0.0001315,2]
[398285569,1765491048127,-500.0,0.0001315,2]
[398285570,1765491048136,-500.0,0.0001315,2]
[398285571,1765491048145,-500.0,0.0001315,2]
[398285572,1765491048154,-500.0,0.0001315,2]
[398285573,1765491048164,-500.0,0.0001315,2]
[398285574,1765491048173,-500.0,0.0001315,2]
[398285575,1765491048183,-500.0,0.0001315,2]
[398285576,1765491048192,-334.40710245,0.0001315,2]
[398285577,1765491048201,-500.0,0.0001315,2]
[398285578,1765491048210,-500.0,0.0001315,2]
[398285579,1765491048220,-500.0,0.0001315,2]
[398285580,1765491048229,-500.0,0.0001315,2]
[398285581,1765491048238,-1285.23,0.0001315,2]
[398285582,1765491048248,-257.06700397,0.0001315,2]
[398285583,1765491048257,-534.23,0.0001315,2]
[398285584,1765491048267,-500.0,0.0001315,2]
[398285585,1765491048279,-607.27,0.0001315,2]
[398285586,1765491048296,-500.0,0.0001315,2]
[398285587,1765491048306,-500.0,0.0001315,2]
[398285588,1765491048315,-500.0,0.0001315,2]
[398285589,1765491048324,-500.0,0.0001315,2]
[398285590,1765491048334,-500.0,0.0001315,2]
[398285591,1765491048343,-577.2,0.0001315,2]
[398285592,1765491048353,-500.0,0.0001315,2]
[398285593,1765491048362,-500.0,0.0001315,2]
[398285594,1765491048371,-500.0,0.0001315,2]
[398285595,1765491048381,-500.0,0.0001315,2]
[398285596,1765491048391,-500.0,0.0001315,2]
[398285597,1765491048410,-500.0,0.0001315,2]
[398285598,1765491048419,-500.0,0.0001315,2]
[398285599,1765491048429,-500.0,0.0001315,2]
[398285600,1765491048438,-565.22,0.0001315,2]
[398285601,1765491048447,-239.33814819,0.0001315,2]
[398285602,1765491048456,-500.0,0.0001315,2]
[398285603,1765491048466,-500.0,0.0001315,2]
[398285604,1765491048475,-500.0,0.0001315,2]
[398285605,1765491048484,-896.09,0.0001315,2]
[398285606,1765491048493,-500.0,0.0001315,2]
[398285607,1765491048503,-500.0,0.0001315,2]
[398285608,1765491048512,-500.0,0.0001315,2]
[398285609,1765491048521,-500.0,0.0001315,2]
[398285610,1765491048530,-500.0,0.0001315,2]
[398285611,1765491048539,-500.0,0.0001315,2]
[398285612,1765491048548,-500.0,0.0001315,2]
[398285613,1765491048557,-500.0,0.0001315,2]
[398285614,1765491048566,-500.0,0.0001315,2]
[398285615,1765491048575,-500.0,0.0001315,2]
[398285616,1765491048585,-500.0,0.0001315,2]
[398285617,1765491048595,-527.45,0.0001315,2]
[398285618,1765491048604,-500.0,0.0001315,2]
[398285619,1765491048613,-673.31,0.0001315,2]
[398285620,1765491048622,-500.0,0.0001315,2]
[398285621,1765491048632,-500.0,0.0001315,2]
[398285622,1765491048641,-500.0,0.0001315,2]
[398285623,1765491048650,-558.7,0.0001315,2]
[398285624,1765491048659,-500.0,0.0001315,2]
[398285625,1765491048669,-500.0,0.0001315,2]
[398285626,1765491048679,-500.0,0.0001315,2]
[398285627,1765491048688,-577.5,0.0001315,2]
[398285628,1765491048698,-500.0,0.0001315,2]
[398285629,1765491048707,-1296.07,0.0001315,2]
[398285630,1765491048717,-500.0,0.0001315,2]
[398285631,1765491048727,-500.0,0.0001315,2]
[398285632,1765491048736,-863.48,0.0001315,2]
[398285633,1765491048745,-838.73,0.0001315,2]
[398285634,1765491048755,-500.0,0.0001315,2]
[398285635,1765491048768,-500.0,0.0001315,2]
[398285636,1765491048777,-500.0,0.0001315,2]
[398285637,1765491048786,-500.0,0.0001315,2]
[398285638,1765491048796,-500.0,0.0001315,2]
[398285639,1765491048807,-523.5,0.0001315,2]
[398285640,1765491048816,-500.0,0.0001315,2]
[398285641,1765491048826,-500.0,0.0001315,2]
[398285642,1765491048836,-688.16,0.0001315,2]
[398285643,1765491048846,-500.0,0.0001315,2]
[398285644,1765491048855,-500.0,0.0001315,2]
[398285645,1765491048865,-500.0,0.0001315,2]
[398285646,1765491048874,-500.0,0.0001315,2]
[398285647,1765491048884,-500.0,0.0001315,2]
[398285648,1765491048894,-500.0,0.0001315,2]
[398285649,1765491048903,-1755.42,0.0001315,2]
[398285650,1765491048913,-3134.98,0.0001315,2]
[398285651,1765491048922,-500.0,0.0001315,2]
[398285652,1765491048932,-818.38,0.0001315,2]
[398285653,1765491048941,-500.0,0.0001315,2]
[398285654,1765491048951,-500.0,0.0001315,2]
[398285655,1765491048961,-500.0,0.0001315,2]
[398285656,1765491048970,-500.0,0.0001315,2]
[398285657,1765491048980,-500.0,0.0001315,2]
[398285658,1765491048989,-686.06,0.0001315,2]
[398285659,1765491048998,-1030.05,0.0001315,2]
[398285660,1765491049008,-500.0,0.0001315,2]
[398285661,1765491049017,-500.0,0.0001315,2]
[398285662,1765491049027,-500.0,0.0001315,2]
[398285663,1765491049036,-500.0,0.0001315,2]
[398285664,1765491049046,-500.0,0.0001315,2]
[398285665,1765491049055,-561.09,0.0001315,2]
[398285666,1765491049065,-500.0,0.0001315,2]
[398285667,1765491049074,-500.0,0.0001315,2]
[398285668,1765491049083,-1451.63,0.0001315,2]
[398285669,1765491049093,-500.0,0.0001315,2]
[398285670,1765491049102,-795.02,0.0001315,2]
[398285671,1765491049112,-500.0,0.0001315,2]
[398285672,1765491049121,-500.0,0.0001315,2]
[398285673,1765491049131,-622.46,0.0001315,2]
[398285674,1765491049140,-241.77864335,0.0001315,2]
[398285675,1765491049149,-500.0,0.0001315,2]
[398285676,1765491049159,-500.0,0.0001315,2]
[398285677,1765491049168,-500.0,0.0001315,2]
[398285678,1765491049178,-1160.09,0.0001315,2]
[398285679,1765491049187,-500.0,0.0001315,2]
[398285680,1765491049196,-500.0,0.0001315,2]
[398285681,1765491049206,-500.0,0.0001315,2]
[398285682,1765491049215,-759.53,0.0001315,2]
[398285683,1765491049224,-500.0,0.0001315,2]
[398285684,1765491049234,-754.33,0.0001315,2]
[398285685,1765491049243,-500.0,0.0001315,2]
[398285686,1765491049252,-571.26,0.0001315,2]
[398285687,1765491049262,-500.0,0.0001315,2]
[398285688,1765491049271,-500.0,0.0001315,2]
[398285689,1765491049280,-500.0,0.0001315,2]
[398285690,1765491049290,-500.0,0.0001315,2]
[398285691,1765491049299,-1048.47,0.0001315,2]
[398285692,1765491049309,-500.0,0.0001315,2]
[398285693,1765491049318,-563.96,0.0001315,2]
[398285694,1765491049328,-500.0,0.0001315,2]
[398285695,1765491049344,-500.0,0.0001315,2]
[398285696,1765491049354,-500.0,0.0001315,2]
[398285697,1765491049365,-1039.07,0.0001315,2]
[398285698,1765491049375,-947.85,0.0001315,2]
[398285699,1765491049386,-512.32,0.0001315,2]
[398285700,1765491049396,-500.0,0.0001315,2]
[398285701,1765491049406,-813.08,0.0001315,2]
[398285702,1765491049416,-897.93,0.0001315,2]
[398285703,1765491049426,-500.0,0.0001315,2]
[398285704,1765491049437,-728.62,0.0001315,2]
[398285705,1765491049446,-2323.07,0.0001315,2]
[398285706,1765491049457,-500.0,0.0001315,2]
[398285707,1765491049466,-500.0,0.0001315,2]
[398285708,1765491049476,-3000.35,0.0001315,2]
[398285709,1765491049485,-500.0,0.0001315,2]
[398285710,1765491049495,-500.0,0.0001315,2]
[398285711,1765491049504,-500.0,0.0001315,2]
[398285712,1765491049514,-542.18,0.0001315,2]
[398285713,1765491049523,-500.0,0.0001315,2]
[398285714,1765491049532,-500.0,0.0001315,2]
[398285715,1765491049542,-170.15,0.0001315,2]
[398285716,1765491049551,-866.89,0.0001315,2]
[398285717,1765491049560,-500.0,0.0001315,2]
[398285718,1765491049570,-500.0,0.0001315,2]
[398285719,1765491049580,-500.0,0.0001315,2]
[398285720,1765491049590,-1019.28,0.0001315,2]
[398285721,1765491049600,-3252.09,0.0001315,2]
[398285722,1765491049609,-500.0,0.0001315,2]
[398285723,1765491049619,-500.0,0.0001315,2]
[398285724,1765491049628,-500.0,0.0001315,2]
[398285725,1765491049637,-500.0,0.0001315,2]
[398285726,1765491049647,-1921.4,0.0001315,2]
[398285727,1765491049656,-500.0,0.0001315,2]
[398285728,1765491049665,-500.0,0.0001315,2]
[398285729,1765491049675,-559.56,0.0001315,2]
[398285730,1765491049685,-500.0,0.0001315,2]
[398285731,1765491049695,-736.04,0.0001315,2]
[398285732,1765491049704,-500.0,0.0001315,2]
[398285733,1765491049714,-500.0,0.0001315,2]
[398285734,1765491049724,-500.0,0.0001315,2]
[398285735,1765491049733,-628.5,0.0001315,2]
[398285736,1765491049743,-1231.35,0.0001315,2]
[398285737,1765491049753,-500.0,0.0001315,2]
[398285738,1765491049765,-500.0,0.0001315,2]
[398285739,1765491049779,-611.24,0.0001315,2]
[398285740,1765491049789,-500.0,0.0001315,2]
[398285741,1765491049798,-500.0,0.0001315,2]
[398285742,1765491049809,-500.0,0.0001315,2]
[398285743,1765491049819,-500.0,0.0001315,2]
[398285744,1765491049828,-571.89,0.0001315,2]
[398285745,1765491049837,-500.0,0.0001315,2]
[398285746,1765491049847,-500.0,0.0001315,2]
[398285747,1765491049856,-500.0,0.0001315,2]
[398285748,1765491049866,-500.0,0.0001315,2]
[398285749,1765491049875,-868.73,0.0001315,2]
[398285750,1765491049885,-500.0,0.0001315,2]
[398285751,1765491049894,-563.54,0.0001315,2]
[398285752,1765491049903,-500.0,0.0001315,2]
[398285753,1765491049912,-500.0,0.0001315,2]
[398285754,1765491049921,-5015.56,0.0001315,2]
[398285755,1765491049931,-490.20168973,0.0001315,2]
[398285756,1765491049940,-500.0,0.0001315,2]
[398285757,1765491049949,-500.0,0.0001315,2]
[398285758,1765491049959,-500.0,0.0001315,2]
[398285759,1765491049967,-500.0,0.0001315,2]
[398285760,1765491049977,-899.43,0.0001315,2]
[398285761,1765491049986,-500.0,0.0001315,2]
[398285762,1765491049996,-755.72,0.0001315,2]
[398285763,1765491050005,-581.02,0.0001315,2]
[398285764,1765491050014,-663.49,0.0001315,2]
[398285765,1765491050023,-500.0,0.0001315,2]
[398285766,1765491050032,-989.01,0.0001315,2]
[398285767,1765491050041,-500.0,0.0001315,2]
[398285768,1765491050050,-2160.19,0.0001315,2]
[398285769,1765491050059,-10205.12,0.0001315,2]
[398285770,1765491050068,-500.0,0.0001315,2]
[398285771,1765491050077,-911.49,0.0001315,2]
[398285772,1765491050086,-500.0,0.0001315,2]
[398285773,1765491050096,-500.0,0.0001315,2]
[398285774,1765491050106,-500.0,0.0001315,2]
[398285775,1765491050115,-1655.06,0.0001315,2]
[398285776,1765491050124,-7298.25,0.0001315,2]
[398285777,1765491050134,-1376.34,0.0001315,2]
[398285778,1765491050143,-500.0,0.0001315,2]
[398285779,1765491050152,-500.0,0.0001315,2]
[398285780,1765491050161,-662.02,0.0001315,2]
[398285781,1765491050170,-500.0,0.0001315,2]
[398285782,1765491050179,-268.47723473,0.0001315,2]
[398285783,1765491050188,-500.0,0.0001315,2]
[398285784,1765491050198,-1087.18,0.0001315,2]
[398285785,1765491050207,-500.0,0.0001315,2]
[398285786,1765491050216,-500.0,0.0001315,2]
[398285787,1765491050225,-500.0,0.0001315,2]
[398285788,1765491050235,-4759.15,0.0001315,2]
[398285789,1765491050244,-1015.81,0.0001315,2]
[398285790,1765491050254,-681.56,0.0001315,2]
[398285791,1765491050263,-500.0,0.0001315,2]
[398285792,1765491050273,-500.0,0.0001315,2]
[398285793,1765491050282,-620.4,0.0001315,2]
[398285794,1765491050294,-559.66,0.0001315,2]
[398285795,1765491050304,-500.0,0.0001315,2]
[398285796,1765491050314,-737.1,0.0001315,2]
[398285797,1765491050323,-500.0,0.0001315,2]
[398285798,1765491050332,-500.0,0.0001315,2]
[398285799,1765491050342,-10960.99,0.0001315,2]
[398285800,1765491050351,-500.0,0.0001315,2]
[398285801,1765491050360,-1235.62,0.0001315,2]
[398285802,1765491050370,-500.0,0.0001315,2]
[398285803,1765491050379,-609.68,0.0001315,2]
[398285804,1765491050388,-1000.15,0.0001315,2]
[398285805,1765491050397,-500.0,0.0001315,2]
[398285806,1765491050407,-500.0,0.0001315,2]
[398285807,1765491050416,-993.89,0.0001315,2]
[398285808,1765491050425,-901.8,0.0001315,2]
[398285809,1765491050435,-4579.29,0.0001315,2]
[398285810,1765491050444,-500.0,0.0001315,2]
[398285811,1765491050454,-652.78,0.0001315,2]
[398285812,1765491050463,-500.0,0.0001315,2]
[398285813,1765491050472,-1323.53,0.0001315,2]
[398285814,1765491050481,-500.0,0.0001315,2]
[398285815,1765491050491,-500.0,0.0001315,2]
[398285816,1765491050500,-503.05,0.0001315,2]
[398285817,1765491050510,-1352.81,0.0001315,2]
[398285818,1765491050518,-500.0,0.0001315,2]
[398285819,1765491050528,-2040.63,0.0001315,2]
[398285820,1765491050538,-5393.14,0.0001315,2]
[398285821,1765491050547,-500.0,0.0001315,2]
[398285822,1765491050556,-2209.61,0.0001315,2]
[398285823,1765491050565,-500.0,0.0001315,2]
[398285824,1765491050575,-583.82208515,0.0001315,2]
[398285825,1765491050584,-500.0,0.0001315,2]
[398285826,1765491050593,-500.0,0.0001315,2]
[398285827,1765491050603,-202.37046199,0.0001315,2]
[398285828,1765491050613,-849.87,0.0001315,2]
[398285829,1765491050629,-500.0,0.0001315,2]
[398285830,1765491050639,-1257.67,0.0001315,2]
[398285831,1765491050649,-10412.18,0.0001315,2]
[398285832,1765491050659,-695.64,0.0001315,2]
[398285833,1765491050671,-280.41246383,0.0001315,2]
[398285834,1765491050682,-8149.72,0.0001315,2]
[398285835,1765491050692,-704.78,0.0001315,2]
[398285836,1765491050701,-516.1,0.0001315,2]
[398285837,1765491050712,-500.0,0.0001315,2]
[398285838,1765491050723,-500.0,0.0001315,2]
[398285839,1765491050733,-622.21,0.0001315,2]
[398285840,1765491050743,-228.78445009,0.0001315,2]
[398285841,1765491050754,-500.0,0.0001315,2]
[398285842,1765491050769,-500.0,0.0001315,2]
[398285843,1765491050781,-501.41,0.0001315,2]
[398285844,1765491050791,-1309.33,0.0001315,2]
[398285845,1765491050801,-1136.35,0.0001315,2]
[398285846,1765491050812,-850.69,0.0001315,2]
[398285847,1765491050822,-500.0,0.0001315,2]
[398285848,1765491050831,-500.0,0.0001315,2]
[398285849,1765491050841,-6363.01,0.0001315,2]
[398285850,1765491050852,-500.0,0.0001315,2]
[398285851,1765491050861,-500.0,0.0001315,2]
[398285852,1765491050871,-743.42,0.0001315,2]
[398285853,1765491050880,-1968.14,0.0001315,2]
[398285854,1765491050890,-500.0,0.0001315,2]
[398285855,1765491050899,-2886.13,0.0001315,2]
[398285856,1765491050909,-500.0,0.0001315,2]
[398285857,1765491050918,-5172.69,0.0001315,2]
[398285858,1765491050928,-500.0,0.0001315,2]
[398285859,1765491050937,-580.49183519,0.0001315,2]
[398285860,1765491050946,-509.1,0.0001315,2]
[398285861,1765491050955,-500.0,0.0001315,2]
[398285862,1765491050964,-500.0,0.0001315,2]
[398285863,1765491050973,-500.0,0.0001315,2]
[398285864,1765491050983,-1208.74,0.0001315,2]
[398285865,1765491050992,-768.92,0.0001315,2]
[398285866,1765491051001,-1240.17,0.0001315,2]
[398285867,1765491051010,-912.89,0.0001315,2]
[398285868,1765491051019,-500.0,0.0001315,2]
[398285869,1765491051029,-863.44,0.0001315,2]
[398285870,1765491051038,-500.0,0.0001315,2]
[398285871,1765491051047,-500.0,0.0001315,2]
[398285872,1765491051056,-11407.6,0.0001315,2]
[398285873,1765491051065,-1196.58,0.0001315,2]
[398285874,1765491051074,-500.0,0.0001315,2]
[398285875,1765491051084,-446.88,0.0001315,2]
[398285876,1765491051093,-500.0,0.0001315,2]
[398285877,1765491051102,-500.0,0.0001315,2]
[398285878,1765491051111,-500.0,0.0001315,2]
[398285879,1765491051120,-500.0,0.0001315,2]
[398285880,1765491051129,-904.49,0.0001315,2]
[398285881,1765491051138,-562.55,0.0001315,2]
[398285882,1765491051148,-2576.59,0.0001315,2]
[398285883,1765491051157,-3480.09,0.0001315,2]
[398285884,1765491051167,-500.0,0.0001315,2]
[398285885,1765491051177,-500.0,0.0001315,2]
[398285886,1765491051186,-500.0,0.0001315,2]
[398285887,1765491051196,-500.0,0.0001315,2]
[398285888,1765491051205,-500.0,0.0001315,2]
[398285889,1765491051214,-1279.59,0.0001315,2]
[398285890,1765491051223,-500.0,0.0001315,2]
[398285891,1765491051231,-500.0,0.0001315,2]
[398285892,1765491051239,-500.0,0.0001315,2]
[398285893,1765491051249,-500.0,0.0001315,2]
[398285894,1765491051258,-1023.09,0.0001315,2]
[398285895,1765491051268,-4044.64,0.0001315,2]
[398285896,1765491051278,-500.0,0.0001315,2]
[398285897,1765491051288,-1327.32,0.0001315,2]
[398285898,1765491051297,-500.0,0.0001315,2]
[398285899,1765491051306,-3418.32,0.0001315,2]
[398285900,1765491051316,-500.0,0.0001315,2]
[398285901,1765491051326,-629.66078986,0.0001315,2]
[398285902,1765491051335,-500.0,0.0001315,2]
[398285903,1765491051344,-500.0,0.0001315,2]
[398285904,1765491051353,-500.0,0.0001315,2]
[398285905,1765491051362,-2329.0,0.0001315,2]
[398285906,1765491051371,-500.0,0.0001315,2]
[398285907,1765491051381,-2168.76,0.0001315,2]
[398285908,1765491051391,-500.0,0.0001315,2]
[398285909,1765491051400,-1724.75,0.0001315,2]
[398285910,1765491051409,-5564.14,0.0001315,2]
[398285911,1765491051419,-500.0,0.0001315,2]
[398285912,1765491051428,-500.0,0.0001315,2]
[398285913,1765491051437,-626.06,0.0001315,2]
[398285914,1765491051446,-3574.77,0.0001315,2]
[398285915,1765491051455,-500.0,0.0001315,2]
[398285916,1765491051465,-1021.25,0.0001315,2]
[398285917,1765491051474,-1995.09,0.0001315,2]
[398285918,1765491051483,-500.0,0.0001315,2]
[398285919,1765491051492,-500.0,0.0001315,2]
[398285920,1765491051502,-500.0,0.0001315,2]
[398285921,1765491051512,-500.0,0.0001315,2]
[398285922,1765491051521,-1168.52,0.0001315,2]
[398285923,1765491051532,-4186.9,0.0001315,2]
[398285924,1765491051541,-238.86294386,0.0001315,2]
[398285925,1765491051550,-1699.31,0.0001315,2]
[398285926,1765491051559,-2136.82,0.0001315,2]
[398285927,1765491051568,-500.0,0.0001315,2]
[398285928,1765491051578,-500.0,0.0001315,2]
[398285929,1765491051587,-500.0,0.0001315,2]
[398285930,1765491051597,-822.4,0.0001315,2]
[398285931,1765491051607,-500.0,0.0001315,2]
[398285932,1765491051616,-500.0,0.0001315,2]
[398285933,1765491051626,-1115.45,0.0001315,2]
[398285934,1765491051636,-190.6181277,0.0001315,2]
[398285935,1765491051646,-3155.66,0.0001315,2]
[398285936,1765491051656,-523.26,0.0001315,2]
[398285937,1765491051665,-500.0,0.0001315,2]
[398285938,1765491051675,-595.27,0.0001315,2]
[398285939,1765491051685,-435.66796777,0.0001315,2]
[398285940,1765491051694,-3166.48,0.0001315,2]
[398285941,1765491051704,-715.29,0.0001315,2]
[398285942,1765491051714,-2155.6,0.0001315,2]
[398285943,1765491051723,-944.25,0.0001315,2]
[398285944,1765491051733,-1775.18,0.0001315,2]
[398285945,1765491051743,-1785.91,0.0001315,2]
[398285946,1765491051752,-500.0,0.0001315,2]
[398285947,1765491051763,-23114.45,0.0001315,2]
[398285948,1765491051774,-500.0,0.0001315,2]
[398285949,1765491051892,-1411.75,0.0001315,2]
[398285950,1765491051902,-4516.98,0.0001315,2]
[398285951,1765491051912,-500.0,0.0001315,2]
[398285952,1765491051922,-913.98,0.0001315,2]
[398285953,1765491051931,-1529.69,0.0001315,2]
[398285954,1765491051940,-5237.79,0.0001315,2]
[398285955,1765491051950,-28377.33,0.0001315,2]
[398285956,1765491051960,-500.0,0.0001315,2]
[398285957,1765491051970,-500.0,0.0001315,2]
[398285958,1765491051979,-500.0,0.0001315,2]
[398285959,1765491051989,-500.0,0.00013151,2]
[398285960,1765491051999,-500.0,0.00013151,2]
[398285961,1765491052008,-900.0,0.00013166,2]
[398285962,1765491052019,-3207.40519818,0.0001317,2]
[398285963,1765491052028,-663.93287602,0.0001317,2]
[398285964,1765491052038,-900.0,0.00013194,2]
[398285965,1765491052048,-562.0,0.00013254,2]
[398285966,1765491052059,-645.0,0.00013254,2]
[398285967,1765491052069,-445.0,0.00013254,2]
[398285968,1765491052078,-561.0,0.00013254,2]
[398285969,1765491052087,-500.0,0.00013255,2]
[398285970,1765491052097,-466.90493378,0.00013273,2]
[398285971,1765491052107,-648.95352929,0.00013273,2]
[398285972,1765491052117,-500.86429068,0.00013273,2]
[398285973,1765491052127,-500.0,0.00013273,2]
[398285974,1765491052136,-500.1449462,0.00013273,2]
[398285975,1765491052146,-500.94664985,0.00013273,2]
[398285976,1765491052155,-501.24398704,0.00013273,2]
[398285977,1765491052165,-641.71571382,0.00013273,2]
[398285978,1765491052174,-501.07653322,0.00013273,2]
[398285979,1765491052184,-217.30985839,0.00013273,2]
[398285980,1765491052194,-500.0,0.00013273,2]
[398285981,1765491052203,-500.41713101,0.00013273,2]
[398285982,1765491052212,-500.0,0.00013273,2]
[398285983,1765491052223,-500.0,0.00013273,2]
[398285984,1765491052232,-501.54231559,0.00013273,2]
[398285985,1765491052242,-500.0,0.00013273,2]
[398285986,1765491052252,-500.0,0.00013273,2]
[398285987,1765491052261,-500.0,0.00013273,2]
[398285988,1765491052271,-500.0,0.00013273,2]
[398285989,1765491052280,-500.0,0.00013273,2]
[398285990,1765491052290,-500.0,0.00013273,2]
[398285991,1765491052300,-216.45044841,0.00013273,2]
[398285992,1765491052310,-500.0,0.00013273,2]
[398285993,1765491052320,-500.0,0.00013273,2]
[398285994,1765491052330,-166.99630451,0.00013273,2]
[398285995,1765491052341,-500.0,0.00013273,2]
[398285996,1765491052350,-161.39153881,0.00013273,2]
[398285997,1765491052360,-282.57334582,0.00013273,2]
[398285998,1765491052369,-500.0,0.00013273,2]
[398285999,1765491052378,-500.0,0.00013273,2]
[398286000,1765491052387,-500.0,0.00013273,2]
[398286001,1765491052397,-500.0,0.00013273,2]
[398286002,1765491052406,-325.52429263,0.00013273,2]
[398286003,1765491052416,-500.0,0.00013273,2]
[398286004,1765491052425,-204.50963858,0.00013273,2]
[398286005,1765491052435,-500.0,0.00013273,2]
[398286006,1765491052444,-500.0,0.00013273,2]
[398286007,1765491052453,-500.0,0.00013273,2]
[398286008,1765491052463,-231.75732776,0.00013273,2]
[398286009,1765491052472,-500.0,0.00013273,2]
[398286010,1765491052481,-500.0,0.00013273,2]
[398286011,1765491052490,-500.0,0.00013273,2]
[398286012,1765491052500,-500.0,0.00013273,2]
[398286013,1765491052510,-500.0,0.00013273,2]
[398286014,1765491052519,-158.8799662,0.00013273,2]
[398286015,1765491052529,-500.0,0.00013273,2]
[398286016,1765491052538,-500.0,0.00013273,2]
[398286017,1765491052547,-500.0,0.00013273,2]
[398286018,1765491052557,-500.0,0.00013273,2]
[398286019,1765491052567,-184.92708847,0.00013273,2]
[398286020,1765491052577,-500.0,0.00013273,2]
[398286021,1765491052587,-500.0,0.00013273,2]
[398286022,1765491052597,-339.34665222,0.00013273,2]
[398286023,1765491052607,-500.0,0.00013273,2]
[398286024,1765491052616,-500.0,0.00013273,2]
[398286025,1765491052626,-500.0,0.00013273,2]
[398286026,1765491052635,-500.0,0.00013273,2]
[398286027,1765491052645,-165.06978973,0.00013273,2]
[398286028,1765491052655,-500.0,0.00013273,2]
[398286029,1765491052665,-500.0,0.00013273,2]
[398286030,1765491052675,-500.0,0.00013273,2]
[398286031,1765491052684,-500.0,0.00013273,2]
[398286032,1765491052694,-267.96384786,0.00013273,2]
[398286033,1765491052703,-527.07615824,0.00013273,2]
[398286034,1765491052713,-500.0,0.00013273,2]
[398286035,1765491052723,-500.0,0.00013273,2]
[398286036,1765491052733,-264.31669053,0.00013273,2]
[398286037,1765491052743,-500.0,0.00013273,2]
[398286038,1765491052753,-500.0,0.00013273,2]
[398286039,1765491052763,-824.42650342,0.00013286,2]
[398286040,1765491052775,-520.17155168,0.00013298,2]
[398286041,1765491052785,-6320.57998277,0.00013324,2]
[398286042,1765491052794,-824.65931539,0.00013331,2]
[398286043,1765491052804,-900.0,0.00013332,2]
[398286044,1765491052814,-385.84479966,0.00013346,2]
[398286045,1765491052824,-385.07651329,0.00013346,2]
[398286046,1765491052834,-900.0,0.00013349,2]
[398286047,1765491052845,-900.0,0.00013358,2]
[398286048,1765491052854,-500.0,0.00013368,2]
[398286049,1765491052864,-900.0,0.00013374,2]
[398286050,1765491052875,-500.0,0.00013375,2]
[398286051,1765491052884,-500.0,0.0001338,2]
[398286052,1765491052895,-562.0,0.00013391,2]
[398286053,1765491052905,-645.0,0.00013391,2]
[398286054,1765491052915,-445.0,0.00013391,2]